bitfinex/quotes_SOLUSD_20240714
["timestamp","ask_amount","ask_price","bid_price","bid_amount"]
[1720942416234,8.04692416,145.39,145.35,11.17]
[1720942417439,8.04692416,145.39,145.36,11.17]
[1720942417831,8.04692416,145.39,145.33,65.0]
[1720942417832,8.04692416,145.39,145.33,20.0]
[1720942418034,19.21692416,145.39,145.34,11.17]
[1720942419140,19.21692416,145.39,145.3,20.0]
[1720942419311,11.17,145.37,145.26,15.4618]
[1720942419635,1.72011367,145.36,145.32,11.17]
[1720942420130,12.89003874,145.37,145.33,11.17]
[1720942420324,1.72003874,145.37,145.33,11.17]
[1720942420514,1.72003874,145.37,145.34,11.17]
[1720942421125,17.4973,145.39,145.34,11.17]
[1720942421126,1.71999162,145.38,145.34,11.17]
[1720942422618,12.88999162,145.38,145.34,11.17]
[1720942423137,12.88999162,145.38,145.33,11.17]
[1720942423840,12.88999162,145.38,145.34,11.17]
[1720942425046,1.71999162,145.38,145.34,11.17]
[1720942425347,1.71999162,145.38,145.35,11.17]
[1720942426772,6.3273,145.39,145.35,11.17]
[1720942427042,19.21693283,145.39,145.35,11.17]
[1720942427353,11.17,145.38,145.33,11.17]
[1720942427518,1.71993111,145.37,145.33,11.17]
[1720942428542,12.88993111,145.37,145.26,18.31702885]
[1720942428748,12.88993111,145.37,145.32,11.17]
[1720942428749,1.72007842,145.36,145.32,11.17]
[1720942429271,1.72007252,145.35,145.26,18.31702885]
[1720942429417,11.17,145.37,145.32,11.17]
[1720942429418,1.7201714,145.36,145.32,11.17]
[1720942430221,1.72007511,145.35,145.26,18.31702885]
[1720942430417,1.72007511,145.35,145.31,11.17]
[1720942430939,12.89007511,145.35,145.3,11.17]
[1720942431131,11.17,145.35,145.31,20.0]
[1720942432926,11.17,145.36,145.31,31.17]
[1720942433136,1.72013456,145.35,145.31,31.17]
[1720942433856,17.2645,145.34,145.26,18.31702885]
[1720942434055,17.2645,145.34,145.25,7.20309152]
[1720942434056,11.17,145.32,145.25,7.20309152]
[1720942434242,1.72056702,145.31,145.27,11.17]
[1720942434435,12.89056848,145.32,145.27,11.17]
[1720942435035,12.89056848,145.32,145.25,7.20309152]
[1720942435354,1.72056848,145.32,145.28,11.17]
[1720942435557,1.72055999,145.32,145.28,11.17]
[1720942437840,12.89055999,145.32,145.27,11.17]
[1720942439459,12.89055999,145.32,145.25,7.20309152]
[1720942439663,12.89055999,145.32,145.26,20.0]
[1720942439664,11.17,145.3,145.26,20.0]
[1720942439839,12.8908254,145.29,145.26,20.0]
[1720942440035,12.8908254,145.29,145.21,7.20715549]
[1720942440241,11.17,145.28,145.23,11.17]
[1720942440542,1.72103336,145.27,145.23,11.17]
[1720942441355,12.89103336,145.27,145.24,20.0]
[1720942441660,11.17,145.27,145.24,20.0]
[1720942442158,1.7210568,145.28,145.24,20.0]
[1720942442546,1.7210568,145.28,145.24,31.17]
[1720942444055,6.0945,145.29,145.26,11.17]
[1720942444361,7.81534374,145.29,145.26,11.17]
[1720942444563,7.81534374,145.29,145.25,11.17]
[1720942444868,6.0945,145.29,145.26,11.17]
[1720942446557,16.78532596,145.3,145.24,20.0]
[1720942446558,15.0645,145.3,145.24,20.0]
[1720942446869,6.5079,145.32,145.28,11.17]
[1720942447070,8.22852199,145.32,145.28,11.17]
[1720942448574,19.39852199,145.32,145.27,11.17]
[1720942448869,8.22852199,145.32,145.28,31.17]
[1720942449070,6.5079,145.32,145.28,31.17]
[1720942449244,8.22845711,145.32,145.28,31.17]
[1720942452276,6.5079,145.32,145.3,11.17]
[1720942453546,6.5079,145.32,145.29,11.17]
[1720942454873,6.5079,145.32,145.3,11.17]
[1720942457454,6.5079,145.32,145.28,20.0]
[1720942457757,6.5079,145.32,145.29,56.17]
[1720942458072,6.5079,145.32,145.29,45.0]
[1720942459482,19.39822999,145.32,145.28,11.17]
[1720942459770,11.17,145.31,145.26,11.17]
[1720942460757,12.89063239,145.3,145.21,7.20518715]
[1720942460959,12.8909345,145.29,145.21,7.20518715]
[1720942461275,1.72092866,145.31,145.23,11.17]
[1720942461575,11.17,145.28,145.23,11.17]
[1720942461951,1.72092866,145.31,145.24,11.17]
[1720942461952,11.17,145.29,145.24,11.17]
[1720942462157,11.17,145.29,145.25,45.0]
[1720942462369,11.17,145.29,145.26,20.0]
[1720942463081,12.89092866,145.31,145.26,31.17]
[1720942463282,1.72092866,145.31,145.26,31.17]
[1720942463454,12.89092866,145.31,145.26,31.17]
[1720942464055,1.72092866,145.31,145.27,11.17]
[1720942465783,19.39851422,145.32,145.27,11.17]
[1720942466080,19.39851422,145.32,145.28,11.17]
[1720942466455,19.39851422,145.32,145.27,11.17]
[1720942466655,11.17,145.31,145.26,20.0]
[1720942466868,11.17,145.31,145.27,45.0]
[1720942467079,11.17,145.31,145.26,31.17]
[1720942467080,12.89058583,145.3,145.26,20.0]
[1720942467286,11.17,145.3,145.26,11.17]
[1720942467466,11.17,145.3,145.27,20.0]
[1720942467668,1.7206673,145.31,145.27,20.0]
[1720942467986,12.8906673,145.31,145.27,20.0]
[1720942470983,1.7206673,145.31,145.27,20.0]
[1720942471280,12.8906673,145.31,145.27,20.0]
[1720942473770,1.7206673,145.31,145.27,20.0]
[1720942473961,1.7206673,145.31,145.27,31.17]
[1720942478989,12.8906673,145.31,145.27,20.0]
[1720942482087,11.17,145.3,145.27,20.0]
[1720942482384,11.17,145.3,145.26,20.0]
[1720942482587,11.17,145.3,145.27,45.0]
[1720942483166,12.8906673,145.31,145.27,45.0]
[1720942484089,1.7206673,145.31,145.27,56.17]
[1720942485164,8.22857711,145.32,145.27,56.17]
[1720942485492,19.39857711,145.32,145.27,56.17]
[1720942486196,8.22857711,145.32,145.28,11.17]
[1720942486783,6.5079,145.32,145.28,11.17]
[1720942490095,6.5079,145.32,145.29,45.0]
[1720942490390,6.5079,145.32,145.29,11.17]
[1720942490572,6.5079,145.32,145.3,45.0]
[1720942491816,6.5079,145.32,145.29,45.0]
[1720942494312,6.5079,145.32,145.26,20.0]
[1720942494488,17.6779,145.32,145.27,31.17]
[1720942494807,17.6779,145.32,145.27,11.17]
[1720942494986,12.8905749,145.31,145.28,20.0]
[1720942495512,12.8905749,145.31,145.22,7.20599958]
[1720942495513,11.17,145.29,145.22,7.20599958]
[1720942495812,1.72093607,145.28,145.24,11.17]
[1720942495980,1.72093607,145.28,145.22,7.20599958]
[1720942496181,1.72093607,145.28,145.23,11.17]
[1720942496182,12.89093607,145.28,145.23,11.17]
[1720942496496,11.17,145.28,145.23,11.17]
[1720942496696,11.17,145.28,145.24,20.0]
[1720942497008,11.17,145.28,145.25,45.0]
[1720942497213,11.17,145.29,145.25,45.0]
[1720942497382,1.72097129,145.28,145.25,45.0]
[1720942498291,11.17,145.29,145.25,45.0]
[1720942498694,1.72092768,145.28,145.25,45.0]
[1720942498894,1.72092716,145.31,145.25,56.17]
[1720942499094,11.17,145.3,145.25,56.17]
[1720942499389,12.89089261,145.29,145.25,45.0]
[1720942499717,11.17,145.29,145.25,45.0]
[1720942503815,11.17,145.3,145.25,56.17]
[1720942503990,1.72086462,145.29,145.25,56.17]
[1720942504518,12.89086462,145.29,145.25,56.17]
[1720942504698,11.17,145.29,145.25,45.0]
[1720942505922,11.17,145.3,145.25,56.17]
[1720942506100,1.72086342,145.29,145.25,56.17]
[1720942507302,12.89086342,145.29,145.25,45.0]
[1720942507501,11.17,145.29,145.25,45.0]
[1720942509228,11.17,145.3,145.25,56.17]
[1720942509429,1.72086118,145.29,145.25,56.17]
[1720942509611,11.17,145.28,145.24,20.0]
[1720942509813,1.72086118,145.29,145.22,11.17]
[1720942509814,12.89114442,145.27,145.22,11.17]
[1720942510019,1.72111804,145.26,145.22,11.17]
[1720942511027,1.72111804,145.26,145.23,45.0]
[1720942512603,11.17,145.27,145.23,45.0]
[1720942512805,1.72111198,145.26,145.23,45.0]
[1720942513005,12.89111198,145.26,145.23,45.0]
[1720942513206,1.72125241,145.25,145.23,45.0]
[1720942513424,11.17,145.24,145.16,16.0829]
[1720942513730,12.89149906,145.23,145.18,11.17]
[1720942513936,11.17,145.23,145.16,16.0829]
[1720942514225,11.17,145.23,145.18,11.17]
[1720942514432,12.89153984,145.22,145.16,16.0829]
[1720942514631,11.17,145.22,145.17,11.17]
[1720942514835,1.72164187,145.26,145.16,16.0829]
[1720942515125,11.17,145.24,145.19,11.17]
[1720942515330,11.17,145.25,145.2,11.17]
[1720942515511,1.72148691,145.24,145.2,11.17]
[1720942515712,1.72148691,145.24,145.21,45.0]
[1720942517032,12.89148691,145.24,145.21,45.0]
[1720942517234,11.17,145.24,145.2,45.0]
[1720942518825,1.7215095,145.26,145.21,11.17]
[1720942519006,1.7215095,145.26,145.22,56.17]
[1720942519209,12.8911662,145.28,145.23,11.17]
[1720942519419,12.8911662,145.28,145.24,45.0]
[1720942520932,1.7211662,145.28,145.24,45.0]
[1720942521135,12.8911662,145.28,145.24,45.0]
[1720942522127,11.17,145.27,145.24,45.0]
[1720942522327,18.35807784,145.29,145.24,11.17]
[1720942522634,11.17,145.28,145.25,45.0]
[1720942523237,18.35807784,145.29,145.25,45.0]
[1720942523418,16.637,145.29,145.25,56.17]
[1720942523615,12.89083844,145.29,145.25,56.17]
[1720942524030,12.89083844,145.29,145.25,45.0]
[1720942524831,1.72083844,145.29,145.25,45.0]
[1720942525009,12.89083844,145.29,145.25,45.0]
[1720942525214,7.863839,145.3,145.25,45.0]
[1720942525414,19.033839,145.3,145.25,56.17]
[1720942526035,7.863839,145.3,145.25,56.17]
[1720942526231,17.313,145.3,145.25,56.17]
[1720942526860,6.143,145.3,145.26,11.17]
[1720942527038,11.17,145.3,145.27,45.0]
[1720942527336,27.0451,145.33,145.28,11.17]
[1720942527646,11.17,145.32,145.29,45.0]
[1720942527820,17.59552632,145.33,145.29,45.0]
[1720942528138,11.17,145.32,145.29,45.0]
[1720942529441,27.0451,145.33,145.29,45.0]
[1720942530113,11.17,145.33,145.29,45.0]
[1720942530529,8.1055886,145.34,145.29,56.17]
[1720942530736,1.72027683,145.35,145.3,11.17]
[1720942530920,12.89027683,145.35,145.31,45.0]
[1720942531118,11.17,145.34,145.31,45.0]
[1720942532141,11.17,145.34,145.3,45.0]
[1720942533016,1.72034035,145.33,145.3,45.0]
[1720942533733,11.17,145.34,145.3,45.0]
[1720942534128,12.89030216,145.33,145.3,45.0]
[1720942534329,11.17,145.33,145.29,45.0]
[1720942535350,1.72039715,145.32,145.29,45.0]
[1720942535531,11.17,145.33,145.29,45.0]
[1720942535945,11.17,145.34,145.29,56.17]
[1720942536529,12.89041649,145.35,145.3,11.17]
[1720942536731,15.8751,145.36,145.31,56.17]
[1720942536732,17.59526764,145.36,145.31,56.17]
[1720942536938,11.17,145.35,145.31,11.17]
[1720942537144,8.1053018,145.38,145.33,11.17]
[1720942537447,12.8901018,145.38,145.34,45.0]
[1720942538338,11.17,145.37,145.34,45.0]
[1720942538548,11.17,145.37,145.27,6.4412]
[1720942538549,11.17,145.37,145.33,56.17]
[1720942538854,1.71991738,145.39,145.33,56.17]
[1720942539052,11.17,145.37,145.33,56.17]
[1720942540457,11.17,145.38,145.33,56.17]
[1720942543650,1.71991738,145.39,145.33,56.17]
[1720942543855,11.17,145.38,145.33,45.0]
[1720942544031,11.17,145.38,145.33,11.17]
[1720942544233,11.17,145.37,145.34,45.0]
[1720942544450,11.17,145.37,145.32,56.17]
[1720942546662,11.17,145.37,145.32,45.0]
[1720942546663,11.17,145.36,145.32,45.0]
[1720942547569,12.89013231,145.35,145.32,45.0]
[1720942547768,11.17,145.35,145.31,45.0]
[1720942550050,11.17,145.36,145.31,56.17]
[1720942550247,1.72013039,145.35,145.31,56.17]
[1720942552366,11.17,145.36,145.31,56.17]
[1720942554587,1.72012599,145.35,145.31,56.17]
[1720942555078,1.7201249,145.38,145.31,56.17]
[1720942555277,11.17,145.36,145.31,56.17]
[1720942556862,1.7201249,145.38,145.31,56.17]
[1720942557063,11.17,145.36,145.31,56.17]
[1720942557478,11.17,145.36,145.31,45.0]
[1720942557669,12.89003143,145.35,145.3,11.17]
[1720942557871,11.17,145.35,145.3,11.17]
[1720942559077,1.72019321,145.34,145.31,45.0]
[1720942559395,12.89019321,145.34,145.31,45.0]
[1720942559563,11.17,145.34,145.31,45.0]
[1720942560294,11.17,145.34,145.3,45.0]
[1720942562881,1.72022952,145.37,145.3,45.0]
[1720942563793,1.72022952,145.37,145.3,56.17]
[1720942564171,6.4861,145.36,145.3,56.17]
[1720942564498,1.72017438,145.35,145.3,45.0]
[1720942567205,6.4861,145.36,145.31,11.17]
[1720942567496,6.4861,145.36,145.32,45.0]
[1720942567497,17.6561,145.36,145.32,45.0]
[1720942568064,12.89006873,145.35,145.32,45.0]
[1720942568265,12.89006873,145.35,145.31,45.0]
[1720942568887,1.72006873,145.35,145.31,45.0]
[1720942569092,11.17,145.34,145.3,45.0]
[1720942574993,11.17,145.34,145.24,2.78365095]
[1720942574994,11.17,145.32,145.23,22.0582]
[1720942575188,12.89065224,145.31,145.23,15.8081]
[1720942575390,11.17,145.29,145.23,15.8081]
[1720942575584,11.17,145.29,145.24,11.17]
[1720942576400,11.17,145.29,145.25,20.0]
[1720942576695,12.89080512,145.3,145.26,45.0]
[1720942577097,17.6561,145.31,145.26,56.17]
[1720942577580,6.4861,145.31,145.27,11.17]
[1720942577783,8.20675484,145.31,145.28,45.0]
[1720942578076,6.4861,145.31,145.28,45.0]
[1720942578283,1.7204755,145.33,145.28,45.0]
[1720942578495,1.7204755,145.33,145.28,56.17]
[1720942578676,12.8904755,145.33,145.28,56.17]
[1720942579196,15.5069,145.34,145.28,56.17]
[1720942579197,12.89046758,145.32,145.28,45.0]
[1720942580073,11.17,145.32,145.28,56.17]
[1720942580873,12.89055921,145.33,145.28,56.17]
[1720942582601,11.17,145.31,145.28,45.0]
[1720942582904,12.89046391,145.32,145.28,45.0]
[1720942583508,11.17,145.3,145.28,45.0]
[1720942584105,11.17,145.3,145.27,45.0]
[1720942584287,11.17,145.3,145.26,45.0]
[1720942585278,11.17,145.31,145.26,56.17]
[1720942585699,11.17,145.31,145.26,45.0]
[1720942585899,1.72059624,145.3,145.26,56.17]
[1720942586105,12.89067342,145.29,145.21,23.2976974]
[1720942586303,11.17,145.29,145.24,11.17]
[1720942587385,11.17,145.29,145.25,45.0]
[1720942588310,11.17,145.29,145.25,56.17]
[1720942588612,11.17,145.3,145.25,56.17]
[1720942589111,11.17,145.29,145.25,56.17]
[1720942589890,11.17,145.3,145.25,56.17]
[1720942590094,1.720715,145.32,145.27,11.17]
[1720942590308,11.17,145.32,145.28,45.0]
[1720942590511,12.89054593,145.32,145.28,45.0]
[1720942591514,11.17,145.32,145.28,45.0]
[1720942591715,1.72059461,145.31,145.28,45.0]
[1720942591901,11.17,145.3,145.28,45.0]
[1720942592216,11.17,145.29,145.27,45.0]
[1720942592394,11.17,145.29,145.26,45.0]
[1720942595118,12.89059461,145.31,145.26,56.17]
[1720942595311,11.17,145.31,145.26,56.17]
[1720942595920,11.17,145.32,145.27,11.17]
[1720942596111,11.17,145.32,145.28,45.0]
[1720942596799,11.17,145.31,145.28,45.0]
[1720942597722,1.72054692,145.33,145.28,45.0]
[1720942597922,11.17,145.31,145.28,45.0]
[1720942599124,11.17,145.31,145.27,45.0]
[1720942599342,1.72056937,145.3,145.27,45.0]
[1720942599497,12.89056937,145.3,145.27,45.0]
[1720942599699,11.17,145.3,145.27,45.0]
[1720942600208,1.72071986,145.32,145.27,45.0]
[1720942600408,11.17,145.31,145.27,45.0]
[1720942600609,1.72071986,145.32,145.27,56.17]
[1720942600799,12.89071986,145.32,145.27,56.17]
[1720942601825,11.17,145.32,145.27,56.17]
[1720942603708,12.89054209,145.32,145.27,56.17]
[1720942607917,19.77184209,145.32,145.27,56.17]
[1720942608416,19.77184209,145.32,145.27,45.0]
[1720942609831,11.17,145.31,145.27,45.0]
[1720942610126,11.17,145.28,145.21,16.0921]
[1720942610323,8.60285296,145.3,145.22,11.17]
[1720942610532,11.17,145.27,145.22,11.17]
[1720942610922,11.17,145.28,145.23,11.17]
[1720942611519,11.17,145.28,145.24,45.0]
[1720942612203,1.72092667,145.29,145.24,56.17]
[1720942612415,11.17,145.3,145.25,11.17]
[1720942612736,1.72089237,145.29,145.26,45.0]
[1720942614015,12.89089237,145.29,145.26,45.0]
[1720942614223,11.17,145.29,145.25,45.0]
[1720942614432,12.89092494,145.28,145.25,45.0]
[1720942614623,11.17,145.28,145.24,45.0]
[1720942615509,1.72098504,145.29,145.24,56.17]
[1720942615840,11.17,145.29,145.24,56.17]
[1720942617240,1.72091374,145.3,145.24,56.17]
[1720942617442,12.89091281,145.29,145.24,56.17]
[1720942618347,11.17,145.29,145.24,56.17]
[1720942622140,1.72091273,145.28,145.24,45.0]
[1720942622319,11.17,145.28,145.24,45.0]
[1720942623941,1.72091999,145.27,145.21,16.0921]
[1720942624123,12.89125782,145.26,145.21,16.0921]
[1720942624471,11.17,145.24,145.19,17.4201]
[1720942624611,11.17,145.24,145.19,11.17]
[1720942625527,11.17,145.25,145.2,31.17]
[1720942626551,11.17,145.24,145.21,45.0]
[1720942630859,11.17,145.24,145.17,15.3412]
[1720942631155,11.17,145.21,145.17,15.3412]
[1720942631330,11.17,145.2,145.13,275.2477]
[1720942631649,11.17,145.2,145.15,11.17]
[1720942632023,1.72128044,145.23,145.13,15.2477]
[1720942632233,12.89154024,145.24,145.19,11.17]
[1720942633132,12.89154024,145.24,145.2,45.0]
[1720942633648,1.72154122,145.26,145.21,11.17]
[1720942633845,1.72154122,145.26,145.22,56.17]
[1720942634142,11.17,145.26,145.23,45.0]
[1720942634351,13.3788,145.29,145.2,45.0]
[1720942634352,11.17,145.24,145.2,45.0]
[1720942634548,11.17,145.23,145.2,45.0]
[1720942634729,11.17,145.23,145.19,45.0]
[1720942634925,11.17,145.24,145.19,56.17]
[1720942635127,11.17,145.24,145.2,11.17]
[1720942635348,1.72132968,145.27,145.21,45.0]
[1720942635555,11.17,145.25,145.21,45.0]
[1720942636130,11.17,145.25,145.21,56.17]
[1720942637230,11.17,145.25,145.21,45.0]
[1720942637948,11.17,145.24,145.21,45.0]
[1720942638161,11.17,145.24,145.2,45.0]
[1720942639354,11.17,145.24,145.2,56.17]
[1720942639541,11.17,145.25,145.2,56.17]
[1720942641231,11.17,145.24,145.2,45.0]
[1720942641438,11.17,145.24,145.2,11.17]
[1720942641643,11.17,145.24,145.21,45.0]
[1720942642047,1.72130237,145.23,145.21,45.0]
[1720942642363,12.89130237,145.23,145.21,45.0]
[1720942642527,11.17,145.23,145.21,45.0]
[1720942646364,11.17,145.23,145.12,20.7]
[1720942646365,12.89149806,145.22,145.14,15.8234]
[1720942646569,11.17,145.2,145.15,11.17]
[1720942647556,11.17,145.2,145.16,45.0]
[1720942648459,11.17,145.2,145.16,11.17]
[1720942648762,11.17,145.2,145.17,45.0]
[1720942649069,11.17,145.21,145.17,56.17]
[1720942649241,11.17,145.22,145.17,56.17]
[1720942649441,11.17,145.22,145.18,11.17]
[1720942649769,11.17,145.22,145.19,45.0]
[1720942650261,1.72172511,145.21,145.19,45.0]
[1720942650574,1.72172511,145.21,145.14,15.8234]
[1720942650575,11.17,145.2,145.14,11.17]
[1720942650753,11.17,145.18,145.14,11.17]
[1720942651270,11.17,145.19,145.11,16.0234]
[1720942651464,1.72199418,145.22,145.12,20.0]
[1720942651772,11.17,145.22,145.17,11.17]
[1720942652063,1.72167304,145.23,145.18,56.17]
[1720942652441,12.89167304,145.23,145.18,56.17]
[1720942653546,8.20822417,145.24,145.18,56.17]
[1720942653855,11.17,145.23,145.18,56.17]
[1720942654158,11.17,145.23,145.19,11.17]
[1720942654364,11.17,145.23,145.2,45.0]
[1720942655167,19.37822417,145.24,145.2,45.0]
[1720942656554,17.6566,145.24,145.2,45.0]
[1720942656976,1.72154103,145.23,145.2,45.0]
[1720942657272,12.89154103,145.23,145.2,45.0]
[1720942657756,11.17,145.23,145.2,45.0]
[1720942658758,19.37814092,145.24,145.2,45.0]
[1720942659264,6.4866,145.28,145.22,11.17]
[1720942659479,1.7211155,145.27,145.23,56.17]
[1720942659977,12.8911155,145.27,145.23,45.0]
[1720942660176,11.17,145.26,145.23,45.0]
[1720942661895,1.7211155,145.27,145.23,45.0]
[1720942662186,12.8911155,145.27,145.23,45.0]
[1720942662481,19.37771724,145.28,145.23,56.17]
[1720942665185,11.17,145.27,145.23,56.17]
[1720942666184,11.17,145.27,145.23,45.0]
[1720942667493,8.20771724,145.28,145.23,56.17]
[1720942667866,1.72112454,145.29,145.23,56.17]
[1720942668263,12.89112454,145.29,145.24,11.17]
[1720942668467,12.89112454,145.29,145.25,45.0]
[1720942669401,17.2625,145.31,145.26,11.17]
[1720942669577,17.2625,145.31,145.27,45.0]
[1720942670589,11.17,145.3,145.27,45.0]
[1720942670972,11.17,145.3,145.26,45.0]
[1720942671693,12.89072128,145.29,145.26,45.0]
[1720942671894,12.89072128,145.29,145.25,45.0]
[1720942672704,12.89085333,145.3,145.25,56.17]
[1720942673803,12.89085333,145.3,145.26,11.17]
[1720942673983,12.89085333,145.3,145.27,45.0]
[1720942677905,1.72080167,145.33,145.27,45.0]
[1720942678203,11.17,145.32,145.27,56.17]
[1720942678503,1.72053933,145.33,145.27,56.17]
[1720942678702,12.89052783,145.32,145.27,56.17]
[1720942679575,11.17,145.32,145.27,56.17]
[1720942679908,11.17,145.3,145.27,45.0]
[1720942680607,12.89085162,145.29,145.22,15.3183]
[1720942680909,12.89085162,145.29,145.24,11.17]
[1720942681112,11.17,145.28,145.25,45.0]
[1720942682781,11.17,145.28,145.22,15.3183]
[1720942683003,15.22655745,145.31,145.22,26.4883]
[1720942683303,11.17,145.27,145.22,26.4883]
[1720942683514,11.17,145.28,145.23,11.17]
[1720942683685,11.17,145.28,145.24,11.17]
[1720942684088,11.17,145.29,145.25,45.0]
[1720942684301,8.34455745,145.31,145.25,45.0]
[1720942684603,19.51455745,145.31,145.26,11.17]
[1720942684808,19.51455745,145.31,145.27,45.0]
[1720942685703,11.17,145.3,145.27,45.0]
[1720942685893,11.17,145.3,145.26,45.0]
[1720942686281,11.17,145.29,145.26,45.0]
[1720942686482,11.17,145.29,145.25,45.0]
[1720942687104,11.17,145.3,145.25,56.17]
[1720942687609,11.17,145.29,145.25,45.0]
[1720942687781,11.17,145.3,145.25,56.17]
[1720942688610,11.17,145.29,145.25,45.0]
[1720942688808,8.34455745,145.31,145.25,45.0]
[1720942689008,11.17,145.29,145.25,45.0]
[1720942689202,15.22655745,145.31,145.25,45.0]
[1720942689520,11.17,145.28,145.24,45.0]
[1720942690013,11.17,145.29,145.24,56.17]
[1720942691403,8.34455745,145.31,145.24,56.17]
[1720942691608,11.17,145.29,145.24,56.17]
[1720942692905,8.34455745,145.31,145.24,56.17]
[1720942693083,11.17,145.29,145.24,56.17]
[1720942694209,8.34455745,145.31,145.24,56.17]
[1720942694409,11.17,145.3,145.25,11.17]
[1720942694716,11.17,145.3,145.26,45.0]
[1720942701318,1.7207339,145.33,145.26,56.17]
[1720942701525,1.72049474,145.34,145.28,11.17]
[1720942701821,11.17,145.33,145.29,45.0]
[1720942708109,12.8904217,145.32,145.29,45.0]
[1720942708310,11.17,145.32,145.28,45.0]
[1720942708496,11.17,145.33,145.28,56.17]
[1720942708699,1.7204574,145.32,145.28,56.17]
[1720942708921,12.8904574,145.32,145.28,45.0]
[1720942709227,11.17,145.3,145.26,15.5218]
[1720942709522,11.17,145.3,145.27,45.0]
[1720942711125,1.72077038,145.29,145.26,15.5218]
[1720942711326,11.17,145.3,145.26,15.5218]
[1720942711704,1.72071738,145.29,145.26,15.5218]
[1720942711904,1.72071738,145.29,145.25,11.17]
[1720942712505,1.72071738,145.29,145.26,45.0]
[1720942714125,11.17,145.3,145.26,45.0]
[1720942714506,1.72086745,145.29,145.26,45.0]
[1720942715323,12.89086745,145.29,145.26,45.0]
[1720942715514,11.17,145.29,145.25,45.0]
[1720942718209,1.72086826,145.28,145.25,45.0]
[1720942718503,11.17,145.29,145.25,45.0]
[1720942719627,1.72088952,145.28,145.25,45.0]
[1720942720016,11.17,145.29,145.25,45.0]
[1720942722924,11.17,145.3,145.25,56.17]
[1720942723308,11.17,145.31,145.26,11.17]
[1720942723509,11.17,145.31,145.27,45.0]
[1720942723712,11.17,145.31,145.27,56.17]
[1720942725433,1.72065097,145.34,145.27,56.17]
[1720942725631,11.17,145.31,145.27,45.0]
[1720942728143,11.17,145.32,145.27,56.17]
[1720942728439,11.17,145.33,145.28,11.17]
[1720942728651,11.17,145.33,145.29,45.0]
[1720942729412,1.72047565,145.35,145.29,45.0]
[1720942729608,11.17,145.33,145.29,45.0]
[1720942730627,12.89050323,145.32,145.29,45.0]
[1720942730825,12.89050323,145.32,145.28,45.0]
[1720942731441,11.17,145.31,145.28,45.0]
[1720942731638,1.72051332,145.33,145.27,45.0]
[1720942731816,11.17,145.31,145.27,45.0]
[1720942734435,1.72062335,145.3,145.27,45.0]
[1720942734620,1.72074158,145.3,145.27,45.0]